fUSD/lending_fUSD_20250617
["ID","MTS","AMOUNT","RATE_DAILY","PERIOD"]
[366258827,1750164727773,-490.0,0.0001726,2]
[366258828,1750164727785,-1519.95,0.0001726,2]
[366258829,1750164727795,-1964.7,0.0001726,2]
[366258830,1750164727805,-1024.11,0.0001726,2]
[366258831,1750164727817,-2903.26953476,0.0001726,2]
[366258832,1750164727829,-3500.0,0.0001726,2]
[366258833,1750164727841,-3500.0,0.0001726,2]
[366258834,1750164727851,-150.0,0.00017262,2]
[366258835,1750164727862,-150.0,0.00017269,2]
[366258836,1750164727872,-150.0,0.00017278,2]
[366258837,1750164727882,-1000.0,0.00017295,2]
[366258838,1750164727891,-150.0,0.000173,2]
[366258839,1750164727901,-155.21774203,0.00017303,2]
[366258840,1750164727912,-406.36077028,0.00017312,2]
[366258841,1750164727923,-208.0,0.00017317,7]
[366258842,1750164727934,-1000.0,0.00017321,2]
[366258843,1750164727944,-1000.0,0.00017321,2]
[366258844,1750164727954,-1000.0,0.00017321,2]
[366258845,1750164727964,-1000.0,0.00017321,2]
[366258846,1750164727975,-1000.0,0.00017321,2]
[366258847,1750164727984,-1049.57920749,0.00017321,2]
[366258848,1750164727996,-1000.0,0.00017321,2]
[366258849,1750164728008,-1000.0,0.00017321,2]
[366258850,1750164728018,-1000.0,0.00017321,2]
[366258851,1750164728028,-536.98189763,0.00017321,2]
[366258852,1750164728039,-1000.0,0.00017321,2]
[366258853,1750164728049,-500.14482246,0.00017321,2]
[366258854,1750164728058,-1000.0,0.00017321,2]
[366258855,1750164728068,-1000.0,0.00017321,2]
[366258856,1750164728078,-1000.0,0.00017321,2]
[366258857,1750164728087,-1000.0,0.00017321,2]
[366258858,1750164728096,-504.7917563,0.00017324,2]
[366258859,1750164728106,-150.0,0.00017336,2]
[366258860,1750164728116,-150.0,0.00017337,2]
[366258861,1750164728126,-1639.0,0.0001734,2]
[366258862,1750164728135,-150.0,0.0001734,2]
[366258863,1750164728146,-152.0,0.00017344,5]
[366258864,1750164728156,-150.0,0.00017351,2]
[366258865,1750164728167,-150.0,0.00017353,2]
[366258866,1750164728178,-168.0,0.00017359,2]
[366258867,1750164728188,-150.0,0.00017362,2]
[366258868,1750164728197,-168.0,0.00017366,2]
[366258869,1750164728207,-150.0,0.0001737,2]
[366258870,1750164728216,-170.78,0.0001737,2]
[366258871,1750164728228,-2229.85,0.0001737,2]
[366258872,1750164728239,-354.73,0.0001737,2]
[366258873,1750164728251,-1000.0,0.00017406,2]
[366258874,1750164728261,-150.0,0.00017411,2]
[366258875,1750164728273,-9264.68941313,0.00017417,2]
[366258876,1750164728283,-151.0,0.00017424,2]
[366258877,1750164728294,-151.0,0.00017424,2]
[366258878,1750164728303,-151.0,0.00017424,2]
[366258879,1750164728313,-151.0,0.00017424,2]
[366258880,1750164728324,-490.0,0.00017424,2]
[366258881,1750164728333,-288.41220166,0.00017424,2]
[366258882,1750164728343,-151.0,0.00017424,2]
[366258883,1750164728353,-676.71,0.00017424,2]
[366258884,1750164728363,-526.4,0.00017424,2]
[366258885,1750164728373,-151.0,0.00017424,2]
[366258886,1750164728383,-151.0,0.00017424,2]
[366258887,1750164728393,-517.15,0.00017424,2]
[366258888,1750164728402,-490.0,0.00017424,2]
[366258889,1750164728413,-151.0,0.00017424,2]
[366258890,1750164728423,-638.839966,0.00017424,2]
[366258891,1750164728433,-490.0,0.00017424,2]
[366258892,1750164728443,-245.94102429,0.00017424,2]
[366258893,1750164728453,-490.0,0.00017424,2]
[366258894,1750164728463,-638.839966,0.00017424,2]
[366258895,1750164728473,-490.0,0.00017424,2]
[366258896,1750164728482,-517.79,0.00017424,2]
[366258897,1750164728715,-490.0,0.00017424,2]
[366258898,1750164728725,-577.6,0.00017424,2]
[366258899,1750164728735,-151.0,0.00017424,2]
[366258900,1750164728744,-490.0,0.00017424,2]
[366258901,1750164728753,-491.06244569,0.00017424,2]
[366258902,1750164728763,-490.0,0.00017424,2]
[366258903,1750164728772,-490.0,0.00017424,2]
[366258904,1750164728783,-490.0,0.00017424,2]
[366258905,1750164728793,-1000.0,0.00017424,2]
[366258906,1750164728803,-490.0,0.00017424,2]
[366258907,1750164728812,-197.662097,0.00017424,2]
[366258908,1750164728822,-490.0,0.00017424,2]
[366258909,1750164728831,-490.0,0.00017424,2]
[366258910,1750164728841,-490.0,0.00017424,2]
[366258911,1750164728851,-490.0,0.00017424,2]
[366258912,1750164728860,-151.0,0.00017424,2]
[366258913,1750164728870,-490.0,0.00017424,2]
[366258914,1750164728879,-490.0,0.00017424,2]
[366258915,1750164728889,-490.0,0.00017424,2]
[366258916,1750164728898,-223.42944783,0.00017424,2]
[366258917,1750164728907,-490.0,0.00017424,2]
[366258918,1750164728918,-490.0,0.00017424,2]
[366258919,1750164728928,-490.0,0.00017424,2]
[366258920,1750164728938,-490.0,0.00017424,2]
[366258921,1750164728949,-151.0,0.00017424,2]
[366258922,1750164728959,-490.0,0.00017424,2]
[366258923,1750164728969,-538.89,0.00017424,2]
[366258924,1750164728978,-608.75,0.00017424,2]
[366258925,1750164728988,-490.0,0.00017424,2]
[366258926,1750164728998,-151.0,0.00017424,2]
[366258927,1750164729008,-151.0,0.00017424,2]
[366258928,1750164729018,-490.0,0.00017424,2]
[366258929,1750164729027,-490.0,0.00017424,2]
[366258930,1750164729037,-151.0,0.00017424,2]
[366258931,1750164729047,-151.0,0.00017424,2]
[366258932,1750164729056,-151.0,0.00017424,2]
[366258933,1750164729066,-490.0,0.00017424,2]
[366258934,1750164729075,-151.0,0.00017424,2]
[366258935,1750164729085,-490.0,0.00017424,2]
[366258936,1750164729095,-490.0,0.00017424,2]
[366258937,1750164729104,-151.0,0.00017424,2]
[366258938,1750164729114,-490.0,0.00017424,2]
[366258939,1750164729124,-151.0,0.00017424,2]
[366258940,1750164729134,-490.0,0.00017424,2]
[366258941,1750164729144,-490.0,0.00017424,2]
[366258942,1750164729153,-151.0,0.00017424,2]
[366258943,1750164729163,-151.0,0.00017424,2]
[366258944,1750164729173,-490.0,0.00017424,2]
[366258945,1750164729187,-151.0,0.00017424,2]
[366258946,1750164729197,-589.540499,0.00017424,2]
[366258947,1750164729207,-490.0,0.00017424,2]
[366258948,1750164729217,-589.540499,0.00017424,2]
[366258949,1750164729227,-490.0,0.00017424,2]
[366258950,1750164729238,-490.0,0.00017424,2]
[366258951,1750164729247,-490.0,0.00017424,2]
[366258952,1750164729257,-490.0,0.00017424,2]
[366258953,1750164729267,-490.0,0.00017424,2]
[366258954,1750164729277,-496.42480304,0.00017424,2]
[366258955,1750164729287,-436.78339264,0.00017424,2]
[366258956,1750164729297,-490.0,0.00017424,2]
[366258957,1750164729307,-490.0,0.00017424,2]
[366258958,1750164729316,-490.0,0.00017424,2]
[366258959,1750164729326,-490.0,0.00017424,2]
[366258960,1750164729335,-490.0,0.00017424,2]
[366258961,1750164729346,-490.0,0.00017424,2]
[366258962,1750164729356,-490.0,0.00017424,2]
[366258963,1750164729366,-490.0,0.00017424,2]
[366258964,1750164729376,-490.0,0.00017424,2]
[366258965,1750164729386,-490.0,0.00017424,2]
[366258966,1750164729395,-490.0,0.00017424,2]
[366258967,1750164729405,-527.55,0.00017424,2]
[366258968,1750164729415,-490.0,0.00017424,2]
[366258969,1750164729425,-490.0,0.00017424,2]
[366258970,1750164729434,-490.0,0.00017424,2]
[366258971,1750164729445,-490.0,0.00017424,2]
[366258972,1750164729455,-490.0,0.00017424,2]
[366258973,1750164729465,-546.58,0.00017424,2]
[366258974,1750164729475,-490.0,0.00017424,2]
[366258975,1750164729485,-490.0,0.00017424,2]
[366258976,1750164729495,-490.0,0.00017424,2]
[366258977,1750164729505,-543.01,0.00017424,2]
[366258978,1750164729515,-490.0,0.00017424,2]
[366258979,1750164729525,-490.0,0.00017424,2]
[366258980,1750164729534,-546.23,0.00017424,2]
[366258981,1750164729544,-806.69,0.00017424,2]
[366258982,1750164729554,-490.0,0.00017424,2]
[366258983,1750164729564,-490.0,0.00017424,2]
[366258984,1750164729573,-490.0,0.00017424,2]
[366258985,1750164729583,-715.33,0.00017424,2]
[366258986,1750164729593,-490.0,0.00017424,2]
[366258987,1750164729602,-500.75,0.00017424,2]
[366258988,1750164729613,-151.0,0.00017424,2]
[366258989,1750164729622,-490.0,0.00017424,2]
[366258990,1750164729633,-880.65,0.00017424,2]
[366258991,1750164729643,-490.0,0.00017424,2]
[366258992,1750164729653,-490.0,0.00017424,2]
[366258993,1750164729664,-2255.52,0.00017424,2]
[366258994,1750164729673,-1412.16,0.00017424,2]
[366258995,1750164729683,-882.97,0.00017424,2]
[366258996,1750164729693,-490.0,0.00017424,2]
[366258997,1750164729703,-490.0,0.00017424,2]
[366258998,1750164729713,-490.0,0.00017424,2]
[366258999,1750164729722,-834.11,0.00017424,2]
[366259000,1750164729732,-490.0,0.00017424,2]
[366259001,1750164729742,-490.0,0.00017424,2]
[366259002,1750164729752,-490.0,0.00017424,2]
[366259003,1750164729763,-490.0,0.00017424,2]
[366259004,1750164729773,-490.0,0.00017424,2]
[366259005,1750164729783,-490.0,0.00017424,2]
[366259006,1750164729793,-490.0,0.00017424,2]
[366259007,1750164729803,-832.39,0.00017424,2]
[366259008,1750164729814,-490.0,0.00017424,2]
[366259009,1750164729823,-490.0,0.00017424,2]
[366259010,1750164729832,-490.0,0.00017424,2]
[366259011,1750164729842,-490.0,0.00017424,2]
[366259012,1750164729852,-490.0,0.00017424,2]
[366259013,1750164729863,-920.64,0.00017424,2]
[366259014,1750164729872,-855.44,0.00017424,2]
[366259015,1750164729882,-151.0,0.00017424,2]
[366259016,1750164729892,-258.93,0.00017424,2]
[366259017,1750164729902,-490.0,0.00017424,2]
[366259018,1750164729912,-490.0,0.00017424,2]
[366259019,1750164729922,-616.61,0.00017424,2]
[366259020,1750164729932,-490.0,0.00017424,2]
[366259021,1750164729941,-1137.38,0.00017424,2]
[366259022,1750164729951,-499.89249814,0.00017424,2]
[366259023,1750164729960,-505.82,0.00017424,2]
[366259024,1750164729969,-490.0,0.00017424,2]
[366259025,1750164729979,-490.0,0.00017424,2]
[366259026,1750164729992,-490.0,0.00017424,2]
[366259027,1750164730002,-490.0,0.00017424,2]
[366259028,1750164730012,-490.0,0.00017424,2]
[366259029,1750164730022,-1072.95,0.00017424,2]
[366259030,1750164730032,-618.54,0.00017424,2]
[366259031,1750164730042,-1048.33,0.00017424,2]
[366259032,1750164730052,-490.0,0.00017424,2]
[366259033,1750164730061,-490.0,0.00017424,2]
[366259034,1750164730071,-490.0,0.00017424,2]
[366259035,1750164730080,-490.0,0.00017424,2]
[366259036,1750164730090,-151.0,0.00017424,2]
[366259037,1750164730100,-490.0,0.00017424,2]
[366259038,1750164730111,-490.0,0.00017424,2]
[366259039,1750164730120,-604.26,0.00017424,2]
[366259040,1750164730130,-490.0,0.00017424,2]
[366259041,1750164730139,-490.0,0.00017424,2]
[366259042,1750164730150,-490.0,0.00017424,2]
[366259043,1750164730161,-494.61,0.00017424,2]
[366259044,1750164730170,-490.0,0.00017424,2]
[366259045,1750164730183,-925.36,0.00017424,2]
[366259046,1750164730192,-629.26,0.00017424,2]
[366259047,1750164730202,-490.0,0.00017424,2]
[366259048,1750164730211,-580.96,0.00017424,2]
[366259049,1750164730221,-1024.62,0.00017424,2]
[366259050,1750164730231,-490.0,0.00017424,2]
[366259051,1750164730241,-534.01,0.00017424,2]
[366259052,1750164730251,-490.0,0.00017424,2]
[366259053,1750164730261,-1219.14,0.00017424,2]
[366259054,1750164730271,-490.0,0.00017424,2]
[366259055,1750164730281,-352.70229371,0.00017424,2]
[366259056,1750164730296,-490.0,0.00017424,2]
[366259057,1750164730321,-608.67,0.00017424,2]
[366259058,1750164730342,-628.4,0.00017424,2]
[366259059,1750164730365,-490.0,0.00017424,2]
[366259060,1750164730385,-490.0,0.00017424,2]
[366259061,1750164730406,-490.0,0.00017424,2]
[366259062,1750164730428,-741.58,0.00017424,2]
[366259063,1750164730452,-576.72,0.00017424,2]
[366259064,1750164730475,-490.0,0.00017424,2]
[366259065,1750164730495,-526.38,0.00017424,2]
[366259066,1750164730519,-612.0,0.00017424,2]
[366259067,1750164730537,-490.0,0.00017424,2]
[366259068,1750164730556,-490.0,0.00017424,2]
[366259069,1750164730574,-638.52,0.00017424,2]
[366259070,1750164730592,-490.0,0.00017424,2]
[366259071,1750164730613,-565.57,0.00017424,2]
[366259072,1750164730634,-490.0,0.00017424,2]
[366259073,1750164730650,-490.0,0.00017424,2]
[366259074,1750164730669,-490.0,0.00017424,2]
[366259075,1750164730686,-1223.14,0.00017424,2]
[366259076,1750164730703,-715.85,0.00017424,2]
[366259077,1750164730721,-490.0,0.00017424,2]
[366259078,1750164730739,-490.0,0.00017424,2]
[366259079,1750164730758,-501.09154124,0.00017424,2]
[366259080,1750164730774,-490.0,0.00017424,2]
[366259081,1750164730791,-1060.81,0.00017424,2]
[366259082,1750164730808,-1389.56,0.00017424,2]
[366259083,1750164730826,-627.1,0.00017424,2]
[366259084,1750164730844,-490.0,0.00017424,2]
[366259085,1750164730862,-490.0,0.00017424,2]
[366259086,1750164730879,-856.55,0.00017424,2]
[366259087,1750164730895,-490.0,0.00017424,2]
[366259088,1750164730913,-904.8,0.00017424,2]
[366259089,1750164730930,-1659.85,0.00017424,2]
[366259090,1750164730948,-614.6,0.00017424,2]
[366259091,1750164730965,-1415.52,0.00017424,2]
[366259092,1750164730983,-490.0,0.00017424,2]
[366259093,1750164731000,-490.0,0.00017424,2]
[366259094,1750164731019,-1049.28,0.00017424,2]
[366259095,1750164731037,-490.0,0.00017424,2]
[366259096,1750164731053,-151.0,0.00017424,2]
[366259097,1750164731070,-663.92,0.00017424,2]
[366259098,1750164731088,-708.23,0.00017424,2]
[366259099,1750164731106,-1322.55,0.00017424,2]
[366259100,1750164731123,-490.0,0.00017424,2]
[366259101,1750164731142,-1219.76,0.00017424,2]
[366259102,1750164731160,-2206.61,0.00017424,2]
[366259103,1750164731180,-490.0,0.00017424,2]
[366259104,1750164731198,-490.0,0.00017424,2]
[366259105,1750164731216,-490.0,0.00017424,2]
[366259106,1750164731232,-731.67,0.00017424,2]
[366259107,1750164731251,-538.95,0.00017424,2]
[366259108,1750164731271,-520.27,0.00017424,2]
[366259109,1750164731289,-490.0,0.00017424,2]
[366259110,1750164731307,-490.0,0.00017424,2]
[366259111,1750164731324,-151.0,0.00017424,2]
[366259112,1750164731340,-490.0,0.00017424,2]
[366259113,1750164731357,-490.0,0.00017424,2]
[366259114,1750164731374,-709.65,0.00017424,2]
[366259115,1750164731389,-217.17,0.00017424,2]
[366259116,1750164731407,-490.0,0.00017424,2]
[366259117,1750164731426,-746.18,0.00017424,2]
[366259118,1750164731442,-490.0,0.00017424,2]
[366259119,1750164731458,-490.0,0.00017424,2]
[366259120,1750164731474,-490.0,0.00017424,2]
[366259121,1750164731494,-490.0,0.00017424,2]
[366259122,1750164731511,-908.62,0.00017424,2]
[366259123,1750164731527,-490.0,0.00017424,2]
[366259124,1750164731543,-247.813536,0.00017424,2]
[366259125,1750164731562,-577.82,0.00017424,2]
[366259126,1750164731578,-490.0,0.00017424,2]
[366259127,1750164731595,-490.0,0.00017424,2]
[366259128,1750164731612,-1326.45,0.00017424,2]
[366259129,1750164731629,-490.0,0.00017424,2]
[366259130,1750164731648,-211.12,0.00017424,2]
[366259131,1750164731665,-247.813536,0.00017424,2]
[366259132,1750164731682,-151.0,0.00017424,2]
[366259133,1750164731699,-490.0,0.00017424,2]
[366259134,1750164731716,-957.51,0.00017424,2]
[366259135,1750164731732,-827.74,0.00017424,2]
[366259136,1750164731748,-653.24,0.00017424,2]
[366259137,1750164731765,-490.0,0.00017424,2]
[366259138,1750164731781,-161.846808,0.00017424,2]
[366259139,1750164731798,-490.0,0.00017424,2]
[366259140,1750164731814,-1030.84,0.00017424,2]
[366259141,1750164731831,-490.0,0.00017424,2]
[366259142,1750164731847,-490.0,0.00017424,2]
[366259143,1750164731865,-490.0,0.00017424,2]
[366259144,1750164731881,-490.0,0.00017424,2]
[366259145,1750164731897,-490.0,0.00017424,2]
[366259146,1750164731914,-151.0,0.00017424,2]
[366259147,1750164731930,-490.0,0.00017424,2]
[366259148,1750164731947,-543.54,0.00017424,2]
[366259149,1750164731964,-490.0,0.00017424,2]
[366259150,1750164731979,-490.0,0.00017424,2]
[366259151,1750164731996,-1310.15,0.00017424,2]
[366259152,1750164732012,-496.68,0.00017424,2]
[366259153,1750164732029,-1005.43,0.00017424,2]
[366259154,1750164732045,-514.36,0.00017424,2]
[366259155,1750164732060,-520.91,0.00017424,2]
[366259156,1750164732076,-490.0,0.00017424,2]
[366259157,1750164732092,-490.0,0.00017424,2]
[366259158,1750164732109,-490.0,0.00017424,2]
[366259159,1750164732127,-495.48,0.00017424,2]
[366259160,1750164732143,-975.37,0.00017424,2]
[366259161,1750164732161,-490.0,0.00017424,2]
[366259162,1750164732177,-503.79197535,0.00017424,2]
[366259163,1750164732197,-882.14,0.00017424,2]
[366259164,1750164732216,-490.0,0.00017424,2]
[366259165,1750164732233,-490.0,0.00017424,2]
[366259166,1750164732250,-490.0,0.00017424,2]
[366259167,1750164732267,-490.0,0.00017424,2]
[366259168,1750164732285,-151.0,0.00017424,2]
[366259169,1750164732310,-490.0,0.00017424,2]
[366259170,1750164732326,-151.0,0.00017424,2]
[366259171,1750164732344,-490.0,0.00017424,2]
[366259172,1750164732361,-154.884533,0.00017424,2]
[366259173,1750164732378,-463.02365636,0.00017424,2]
[366259174,1750164732396,-534.08,0.00017424,2]
[366259175,1750164732413,-659.94,0.00017424,2]
[366259176,1750164732430,-490.0,0.00017424,2]
[366259177,1750164732446,-490.0,0.00017424,2]
[366259178,1750164732464,-1026.29,0.00017424,2]
[366259179,1750164732489,-490.0,0.00017424,2]
[366259180,1750164732514,-212.669628,0.00017424,2]
[366259181,1750164732537,-490.0,0.00017424,2]
[366259182,1750164732560,-490.0,0.00017424,2]
[366259183,1750164732581,-151.0,0.00017424,2]
[366259184,1750164732602,-817.67,0.00017424,2]
[366259185,1750164732624,-490.0,0.00017424,2]
[366259186,1750164732643,-151.0,0.00017424,2]
[366259187,1750164732662,-490.0,0.00017424,2]
[366259188,1750164732681,-214.597583,0.00017424,2]
[366259189,1750164732701,-531.3,0.00017424,2]
[366259190,1750164732719,-490.0,0.00017424,2]
[366259191,1750164732737,-214.597583,0.00017424,2]
[366259192,1750164732755,-490.0,0.00017424,2]
[366259193,1750164732772,-490.0,0.00017424,2]
[366259194,1750164732789,-490.0,0.00017424,2]
[366259195,1750164732807,-1100.14,0.00017424,2]
[366259196,1750164732827,-660.53,0.00017424,2]
[366259197,1750164732844,-962.4,0.00017424,2]
[366259198,1750164732862,-490.0,0.00017424,2]
[366259199,1750164732889,-490.0,0.00017424,2]
[366259200,1750164732912,-490.0,0.00017424,2]
[366259201,1750164732933,-490.0,0.00017424,2]
[366259202,1750164732953,-490.0,0.00017424,2]
[366259203,1750164732973,-490.0,0.00017424,2]
[366259204,1750164732994,-490.0,0.00017424,2]
[366259205,1750164733015,-720.15,0.00017424,2]
[366259206,1750164733035,-490.0,0.00017424,2]
[366259207,1750164733053,-453.10325061,0.00017424,2]
[366259208,1750164733072,-491.77458165,0.00017424,2]
[366259209,1750164733091,-1377.37,0.00017424,2]
[366259210,1750164733557,-498.02,0.00017424,2]
[366259211,1750164733569,-151.0,0.00017424,2]
[366259212,1750164733579,-490.0,0.00017424,2]
[366259213,1750164733589,-490.0,0.00017424,2]
[366259214,1750164733600,-490.0,0.00017424,2]
[366259215,1750164733611,-490.0,0.00017424,2]
[366259216,1750164733622,-490.0,0.00017424,2]
[366259217,1750164733633,-151.0,0.00017424,2]
[366259218,1750164733643,-490.0,0.00017424,2]
[366259219,1750164733654,-490.0,0.00017424,2]
[366259220,1750164733664,-490.0,0.00017424,2]
[366259221,1750164733675,-490.0,0.00017424,2]
[366259222,1750164733684,-1323.87,0.00017424,2]
[366259223,1750164733694,-250.0,0.00017424,2]
[366259224,1750164733704,-490.0,0.00017424,2]
[366259225,1750164733715,-490.0,0.00017424,2]
[366259226,1750164733725,-820.55,0.00017424,2]
[366259227,1750164733734,-490.0,0.00017424,2]
[366259228,1750164733744,-155.801001,0.00017424,2]
[366259229,1750164733754,-1759.73,0.00017424,2]
[366259230,1750164733764,-490.0,0.00017424,2]
[366259231,1750164733774,-155.801001,0.00017424,2]
[366259232,1750164733785,-763.5,0.00017424,2]
[366259233,1750164733796,-727.1,0.00017424,2]
[366259234,1750164733806,-490.0,0.00017424,2]
[366259235,1750164733816,-1756.61,0.00017424,2]
[366259236,1750164733826,-2106.23,0.00017424,2]
[366259237,1750164733837,-887.07,0.00017424,2]
[366259238,1750164733847,-490.0,0.00017424,2]
[366259239,1750164733869,-151.0,0.00017424,2]
[366259240,1750164733882,-490.0,0.00017424,2]
[366259241,1750164733893,-284.19,0.00017424,2]
[366259242,1750164733903,-3566.07,0.00017424,2]
[366259243,1750164733914,-490.0,0.00017424,2]
[366259244,1750164733925,-1002.31,0.00017424,2]
[366259245,1750164733935,-1459.85,0.00017424,2]
[366259246,1750164733945,-1019.07,0.00017424,2]
[366259247,1750164733956,-2465.54,0.00017424,2]
[366259248,1750164733967,-490.0,0.00017424,2]
[366259249,1750164733977,-1541.9,0.00017424,2]
[366259250,1750164733988,-490.0,0.00017424,2]
[366259251,1750164733998,-490.0,0.00017424,2]
[366259252,1750164734009,-490.0,0.00017424,2]
[366259253,1750164734019,-1285.58,0.00017424,2]
[366259254,1750164734029,-490.0,0.00017424,2]
[366259255,1750164734039,-2302.59,0.00017424,2]
[366259256,1750164734049,-490.0,0.00017424,2]
[366259257,1750164734059,-490.0,0.00017424,2]
[366259258,1750164734069,-552.55,0.00017424,2]
[366259259,1750164734080,-1209.47,0.00017424,2]
[366259260,1750164734090,-1099.79,0.00017424,2]
[366259261,1750164734100,-490.0,0.00017424,2]
[366259262,1750164734110,-815.84,0.00017424,2]
[366259263,1750164734120,-1690.85,0.00017424,2]
[366259264,1750164734131,-151.0,0.00017424,2]
[366259265,1750164734141,-490.0,0.00017424,2]
[366259266,1750164734152,-490.0,0.00017424,2]
[366259267,1750164734162,-490.0,0.00017424,2]
[366259268,1750164734172,-1609.53,0.00017424,2]
[366259269,1750164734185,-2309.01,0.00017424,2]
[366259270,1750164734195,-491.21,0.00017424,2]
[366259271,1750164734206,-490.0,0.00017424,2]
[366259272,1750164734216,-1850.524618,0.00017424,2]
[366259273,1750164734227,-490.0,0.00017424,2]
[366259274,1750164734238,-490.0,0.00017424,2]
[366259275,1750164734248,-490.0,0.00017424,2]
[366259276,1750164734258,-3025.16,0.00017424,2]
[366259277,1750164734268,-490.0,0.00017424,2]
[366259278,1750164734279,-1827.87,0.00017424,2]
[366259279,1750164734290,-978.71,0.00017424,2]
[366259280,1750164734300,-2376.97,0.00017424,2]
[366259281,1750164734310,-490.0,0.00017424,2]
[366259282,1750164734321,-665.58,0.00017424,2]
[366259283,1750164734332,-2059.97,0.00017424,2]
[366259284,1750164734343,-490.0,0.00017424,2]
[366259285,1750164734354,-2092.53,0.00017424,2]
[366259286,1750164734365,-490.0,0.00017424,2]
[366259287,1750164734375,-490.0,0.00017424,2]
[366259288,1750164734386,-490.0,0.00017424,2]
[366259289,1750164734397,-5417.93,0.00017424,2]
[366259290,1750164734408,-1763.65,0.00017424,2]
[366259291,1750164734419,-490.0,0.00017424,2]
[366259292,1750164734430,-1518.66,0.00017424,2]
[366259293,1750164734441,-490.0,0.00017424,2]
[366259294,1750164734452,-947.96,0.00017424,2]
[366259295,1750164734463,-490.0,0.00017424,2]
[366259296,1750164734473,-1099.29,0.00017424,2]
[366259297,1750164734483,-490.0,0.00017424,2]
[366259298,1750164734494,-490.0,0.00017424,2]
[366259299,1750164734505,-490.0,0.00017424,2]
[366259300,1750164734515,-151.0,0.00017424,2]
[366259301,1750164734525,-490.0,0.00017424,2]
[366259302,1750164734536,-1237.37,0.00017424,2]
[366259303,1750164734547,-500.69116406,0.00017424,2]
[366259304,1750164734557,-213.781959,0.00017424,2]
[366259305,1750164734574,-490.0,0.00017424,2]
[366259306,1750164734585,-6182.7,0.00017424,2]
[366259307,1750164734596,-492.19,0.00017424,2]
[366259308,1750164734607,-490.0,0.00017424,2]
[366259309,1750164734619,-734.6,0.00017424,2]
[366259310,1750164734630,-213.781959,0.00017424,2]
[366259311,1750164734641,-1065.56,0.00017424,2]
[366259312,1750164734652,-833.42,0.00017424,2]
[366259313,1750164734663,-7839.6,0.00017424,2]
[366259314,1750164734674,-490.0,0.00017424,2]
[366259315,1750164734684,-1638.538412,0.00017424,2]
[366259316,1750164734695,-490.0,0.00017424,2]
[366259317,1750164734706,-490.0,0.00017424,2]
[366259318,1750164734716,-556.2,0.00017424,2]
[366259319,1750164734727,-16871.86,0.00017424,2]
[366259320,1750164734738,-1710.39,0.00017424,2]
[366259321,1750164734749,-2361.36,0.00017424,2]
[366259322,1750164734760,-490.0,0.00017424,2]
[366259323,1750164734771,-490.0,0.00017424,2]
[366259324,1750164734782,-490.0,0.00017424,2]
[366259325,1750164734793,-490.0,0.00017424,2]
[366259326,1750164734803,-5618.96,0.00017424,2]